Cogmind - Beta 11 X8 @@@ ROGUE MODE // 2022.01.06 @ 16:07:01 Player: tourn Result: Destroyed by G-67 Veteran with Electrolaser Performance ------------- Evolutions (5) 2500 Regions Visited (16) 3200 Robots Destroyed (242) 1210 Value Destroyed (10764) 10764 Prototype IDs (7) 140 Alien Tech Used (0) 0 Bonus (5751) 5751 TOTAL SCORE: 23565 Bonus ------- High Alert Combat Kills 1373 Follower Combat Kills 657 Entered Garrisons 1200 Used RIF Installer 3000 Friendly Fire -479 Cogmind --------- Core Integrity 0/1000 Matter 140/300 Energy 62/100 System Corruption 38% Temperature Cool (9) Movement Core (50) Location -5/Garrison Parts ------- > --- POWER (1) -------- (None) > --- PROPULSION (3) --- (None) > --- UTILITY (9) ------ (None) > --- WEAPON (4) ------- (None) > --- INVENTORY (5) ---- Energy Well (350) Machine Analyzer Improved Weapon Cycler Improved Shock Absorption System Relay Coupler [Sentry] (38) Peak State ------------ > --- POWER ------------ F-cell Engine > --- PROPULSION ------- Improved Medium Treads Armored Medium Treads Carbon-fiber Leg > --- UTILITY ---------- High-capacity Storage Unit Layered Heavy Armor Plating Advanced Shield Generator Relay Coupler [ARC] Relay Coupler [Grunt] Relay Coupler [Sentry] Relay Coupler [Hunter] Advanced Field Recycling Unit > --- WEAPON ----------- Tesla Rifle KE Penetrator Enhanced Coil Gun Heavy Gauss Cannon > --- INVENTORY -------- Reinforced Deuterium Engine Light Treads Flexi-carbon Leg Improved Heat Sink Matter Compressor Improved Light Armor Plating Layered Medium Armor Plating Improved Thermal Shield Improved Shock Absorption System Relay Coupler [Swarmer] Component Analysis Suite Tesla Rifle KE Penetrator Heavy Gauss Cannon Heavy Gauss Cannon Rocket Launcher Remote Datajack Improved Remote Datajack Katana [Rating: 96] Favorites ----------- Power Light Nuclear Core Engine Reinforced Deuterium Engine Power Core Light Nuclear Core Reactor Cold Fusion Reactor Propulsion Light Treads Treads Light Treads Leg Carbon-fiber Leg Wheel Compact Wheel Flight Unit VTOL Module Utility High-capacity Storage Unit Device Improved Heat Sink Storage High-capacity Storage Unit Processor Improved Targeting Computer Hackware Relay Coupler [Sentry] Protection Layered Heavy Armor Plating Weapon Flak Gun Energy Gun Improved EM Shotgun Energy Cannon Advanced Beam Cannon Ballistic Gun Flak Gun Ballistic Cannon Heavy Gauss Cannon Launcher Rocket Launcher Special Weapon Remote Datajack Slashing Weapon Katana Piercing Weapon Spear Build | -11 -10 -10 -9 -9 -9 -9 -7 -7 -6 -6 -6 -6 -5 -5 -5 -5 ------- Run | Scr Mat Min Mat Sto Gar Rec Fac Gar Fac Gar Fac Gar Fac Gar Fac Gar Slots Evolved 10 | . . . 2 . . . 4 . 2 . . . 2 . . . Power . | . . . . . . . . . . . . . . . . . Propulsion 1 | . . . 1 . . . . . . . . . . . . . Utility 7 | . . . . . . . 3 . 2 . . . 2 . . . Weapon 2 | . . . 1 . . . 1 . . . . . . . . . Parts Attached 408 | . 11 2 16 11 20 3 22 44 56 42 10 18 91 18 22 22 Power 27 | . . . 1 . 1 . 3 6 3 4 . 1 5 2 1 . Engine 14 | . . . . . 1 . 3 2 1 1 . 1 4 1 . . Core 12 | . . . 1 . . . . 4 2 3 . . 1 1 . . Reactor 1 | . . . . . . . . . . . . . . . 1 . Propulsion 81 | . 4 . 4 2 3 1 4 6 10 10 1 1 20 5 5 5 Treads 38 | . 4 . 4 2 3 1 4 6 2 5 . . 5 1 1 . Leg 25 | . . . . . . . . . 5 5 1 1 10 1 1 1 Wheel 13 | . . . . . . . . . 3 . . . 5 2 3 . Hover . | . . . . . . . . . . . . . . . . . Flight 5 | . . . . . . . . . . . . . . 1 . 4 Utility 116 | . 4 2 3 2 3 1 8 7 15 14 6 5 29 6 5 6 Device 49 | . 1 . . . . . 3 3 8 4 5 1 16 4 2 2 Storage 12 | . 2 2 2 1 . . . . 1 1 . . 3 . . . Processor 10 | . 1 . . . . . 2 . 1 1 1 . 4 . . . Hackware 23 | . . . . . . . 1 3 4 4 . 3 1 2 1 4 Protection 22 | . . . 1 1 3 1 2 1 1 4 . 1 5 . 2 . Artifact . | . . . . . . . . . . . . . . . . . Weapon 184 | . 3 . 8 7 13 1 7 25 28 14 3 11 37 5 11 11 Energy Gun 40 | . . . 1 4 6 . 2 1 3 4 . 2 12 1 1 3 Energy Cannon 4 | . . . . 2 . . 1 . . . . . 1 . . . Ballistic Gun 66 | . 3 . 6 . 2 . 2 16 9 8 . 5 7 1 3 4 Ballistic Cannon 18 | . . . . . . . . . 6 . . 2 5 2 3 . Launcher 15 | . . . 1 1 5 . 1 1 2 . 1 . 2 1 . . Special Weapon 29 | . . . . . . . 1 6 5 2 . 2 5 . 4 4 Impact Weapon . | . . . . . . . . . . . . . . . . . Slashing Weapon 11 | . . . . . . 1 . 1 3 . 2 . 4 . . . Piercing Weapon 1 | . . . . . . . . . . . . . 1 . . . Special Melee Weapon . | . . . . . . . . . . . . . . . . . Unidentified Prototypes 6 | . . . 2 2 . . . . . . . . 1 . 1 . Corrupted Parts 4 | . . . . . . . . . 1 . . . 3 . . . System Corruption 11 | . . . . . . . . . 2 . . . 9 . . . Parts Lost 150 | . 2 . . 1 3 . 7 19 18 22 . 7 33 16 5 17 Power 14 | . 1 . . . . . . 4 2 3 . . 3 1 . . Propulsion 45 | . . . . 1 . . 1 5 7 8 . 1 10 4 2 6 Utility 34 | . . . . . 1 . 3 2 2 4 . 1 8 6 2 5 Weapon 57 | . 1 . . . 2 . 3 8 7 7 . 5 12 5 1 6 Highest Loss Streak 15 | . 1 . . 1 2 . 3 8 8 13 . 4 13 10 4 15 Average Slot Usage (%) 95 | . 86 100 99 100 100 100 97 99 98 91 92 93 93 88 96 96 Engine 4 | . 6 14 3 . 6 11 7 1 3 1 6 6 4 1 . . Core 2 | . . . 7 11 4 . . 5 2 4 . . . 3 4 . Treads 15 | . 22 28 32 33 33 33 23 22 6 6 . . 1 3 3 4 Leg 6 | . 5 . . . . . . . 10 11 20 20 12 2 2 . Wheel 1 | . . . . . . . . . 1 . . . 1 8 10 10 Device 6 | . 6 . . . . . 6 5 5 3 4 5 14 15 12 9 Storage 8 | . 15 14 11 11 11 11 7 7 6 6 6 6 5 5 5 4 Processor 6 | . 1 14 8 . . . 14 15 11 7 1 . 1 13 11 4 Hackware 11 | . . . . . . . 3 7 20 14 20 20 21 11 16 24 Protection 4 | . . . 2 11 11 11 2 . . 6 6 6 2 1 4 4 Energy Gun 6 | . 10 . 8 18 21 16 6 1 2 4 . 3 5 2 2 5 Ballistic Gun 14 | . 17 28 24 12 11 11 19 24 18 19 20 8 6 . 2 3 Ballistic Cannon 2 | . . . . . . . . . 2 . . 8 4 7 10 10 Slashing Weapon 1 | . . . . . . 5 . . . . 5 . 2 1 . . Naked Turns 5 | . . . . . . . . . . . . . . . . 5 Heaviest Build 121 | 11 29 27 90 98 100 103 112 106 114 101 97 103 121 73 99 99 Greatest Support 84 | 20 40 40 60 60 60 60 84 84 60 60 60 56 77 40 42 26 Greatest Overweight (x) 36 | . . . 1 1 1 1 1 1 36 4 1 2 4 4 5 3 Average Overweight (x) 1 | . . . . . 1 1 1 1 1 1 1 1 1 3 3 2 Largest Inventory Capacity 25 | 8 15 25 25 25 25 25 25 25 25 20 20 20 20 20 20 20 Average Capacity 21 | 8 13 15 20 24 25 25 25 25 22 20 20 20 20 20 20 19 Most Carried 25 | 6 15 16 20 25 25 25 25 25 25 20 20 20 20 20 20 20 Average Carried 19 | 6 11 14 18 24 24 25 22 23 20 18 19 19 17 17 18 19 Final Capacity 25 | 8 15 15 20 25 25 25 25 25 20 20 20 20 20 20 20 5 Final Carried 25 | 6 15 15 20 25 25 25 25 24 20 20 20 16 20 20 20 5 Class Distribution -------------------- 20% | Bothacker-Gunner 20% | Bothacker-Tank 18% | Bothacker-Mutant 11% | Mutant 10% | Scavenger-Tank 4% | Skirmisher 3% | Scavenger-Mutant 3% | Botlord-Mutant Dominant Class ---------------- Mutant | -10/Materials Mutant | -10/Mines Skirmisher | -9/Materials Scavenger-Tank | -9/Storage Scavenger-Tank | -9/Garrison Bothacker-Mutant | -9/Recycling Bothacker-Gunner | -7/Factory Bothacker-Gunner | -7/Garrison Bothacker-Gunner | -6/Factory Bothacker-Gunner | -6/Garrison Bothacker-Tank | -6/Factory Bothacker-Tank | -6/Garrison Bothacker-Tank | -5/Factory Scavenger-Mutant | -5/Garrison Botlord-Mutant | -5/Factory Botlord-Mutant | -5/Garrison Resources | -11 -10 -10 -9 -9 -9 -9 -7 -7 -6 -6 -6 -6 -5 -5 -5 -5 ----------- Run | Scr Mat Min Mat Sto Gar Rec Fac Gar Fac Gar Fac Gar Fac Gar Fac Gar Matter Collected 9830 | 200 196 258 471 190 346 92 429 1165 1756 1051 478 507 1496 353 412 430 Remotely . | . . . . . . . . . . . . . . . . . Salvage Created 9836 | . 389 175 1108 818 900 56 401 670 1386 708 343 248 1768 310 442 114 Parts 495 | . 25 16 47 54 66 5 27 27 39 37 15 14 86 11 22 4 Haulers Intercepted 9 | . 1 . 3 2 . 1 . . . . . . 1 . 1 . Recyclers Shooed 15 | . . . 1 . . . . . 6 . . . 6 . 2 . Parts Field Recycled 31 | . . . . . . . . . . . . . 22 . 9 . Retrieved Matter 755 | . . . . . . . . . . . . . 527 . 228 . Parts Self-Destructed . | . . . . . . . . . . . . . . . . . Prevented . | . . . . . . . . . . . . . . . . . Kills | -11 -10 -10 -9 -9 -9 -9 -7 -7 -6 -6 -6 -6 -5 -5 -5 -5 ------- Run | Scr Mat Min Mat Sto Gar Rec Fac Gar Fac Gar Fac Gar Fac Gar Fac Gar Combat Hostiles Destroyed 189 | . 11 3 12 14 29 1 9 18 25 12 3 7 27 13 2 3 Melee 3 | . . . . . . . . . . . . . 1 2 . . Guns 123 | . 10 3 11 7 13 . 4 14 21 11 3 6 16 . 1 3 Cannons 22 | . . . . . . . . 1 3 1 . 1 7 8 1 . AOE 40 | . 1 . 1 7 16 1 4 3 1 . . . 3 3 . . Classes Destroyed 19 | . 5 3 1 4 . 1 1 2 1 1 . . . . . . Worker 9 | . 1 2 1 . . . 1 . 1 . 1 . 2 . . . Builder 11 | . . 1 . 1 . . 1 . 1 . . . 5 . 2 . Tunneler 2 | . . 1 . . . . . . . . . . 1 . . . Hauler 9 | . 1 . 3 2 . 1 . . . . . . 1 . 1 . Recycler 13 | . . 1 4 . . . . . 3 . 1 . 2 . 2 . Mechanic 1 | . . . . 1 . . . . . . . . . . . . Operator 1 | . . . . 1 . . . . . . . . . . . . Drone 1 | . . . . . . 1 . . . . . . . . . . Watcher 5 | . 1 . 1 . . . . . . 2 . 1 . . . . Swarmer 45 | . 6 3 . . 15 . 2 3 . 3 . 3 4 4 . 2 Saboteur 1 | . . . . . . . . . 1 . . . . . . . Grunt 71 | . 5 . 8 7 7 . 3 10 14 . 2 . 7 7 . 1 Brawler 5 | . . . . . . . . 2 2 . . . 1 . . . Duelist 6 | . . . . 3 . . . . 2 1 . . . . . . Protector 2 | . . . . 1 . . . . 1 . . . . . . . Sentry 29 | . . . 4 3 7 . 2 2 1 6 . 3 . 1 . . Hunter 8 | . . . . . . . . 1 1 2 . . 3 . 1 . Programmer 21 | . . . . . . . 2 . 3 . 1 . 12 1 2 . Behemoth 2 | . . . . . . . . . . 1 . 1 . . . . Best Kill Streak 11 | . 4 4 5 11 11 1 3 3 5 3 4 2 8 9 3 2 Combat Bots Only 11 | . 4 3 3 9 11 1 3 3 5 3 3 2 4 9 2 2 Max Kills in Single Turn 5 | . 1 2 2 5 4 1 3 2 2 2 2 1 2 2 2 1 Gunslinging 1 | . . 1 . . . . . . 1 1 . . . . . . Exploded 4 | . 1 . 1 3 4 1 1 2 1 . . . 2 2 . . Melee 1 | . . . . . . . . . . . . . 1 1 . . Uniques/NPCs Destroyed . | . . . . . . . . . . . . . . . . . Combat | -11 -10 -10 -9 -9 -9 -9 -7 -7 -6 -6 -6 -6 -5 -5 -5 -5 -------- Run | Scr Mat Min Mat Sto Gar Rec Fac Gar Fac Gar Fac Gar Fac Gar Fac Gar Damage Taken 22739 | . 489 35 307 665 771 15 1025 2381 2128 3949 125 2001 5171 1753 842 1082 Core 2240 | . 41 . 31 65 15 . 82 238 250 437 . 66 434 263 43 275 Absorbed by Shields 832 | . . . . . . . 369 . 121 139 . 22 181 . . . Core Remaining (%) 64 | 100 . 83 . . . 72 . 54 . . . 11 . . . . Volleys Fired 603 | . 38 9 39 24 46 5 27 57 83 46 11 31 100 23 37 27 Largest 4 | . 2 2 3 3 3 3 4 4 4 4 3 4 4 2 4 4 Hottest 252 | . 60 46 91 113 113 113 137 152 186 230 105 252 189 125 223 239 Shots Fired 1529 | . 76 18 109 59 102 13 89 161 251 135 33 97 230 42 71 43 Gun 1199 | . 76 18 108 54 91 13 78 128 184 126 32 69 178 3 29 12 Cannon 227 | . . . . 2 . . 7 17 52 7 . 23 36 37 33 13 Launcher 36 | . . . 1 3 11 . 3 5 7 . 1 . 3 2 . . Special 67 | . . . . . . . 1 11 8 2 . 5 13 . 9 18 Kinetic 1105 | . 44 18 88 24 35 5 54 123 218 124 32 78 151 37 56 18 Thermal 99 | . . . . 2 . . 7 22 17 9 . . 35 . 6 1 Explosive 27 | . . . 1 . 9 . 3 5 3 . 1 . 3 2 . . Electromagnetic 231 | . 32 . 20 33 58 8 24 . 5 . . 14 28 3 . 6 Robot Hit Streak 19 | . 14 3 9 19 19 5 17 15 18 19 7 13 15 7 9 11 Robot Miss Streak 9 | . 4 2 3 2 4 7 3 4 9 3 5 6 7 3 4 2 Penetration Max 2 | . . . . . . . . . . 2 1 . 1 . 1 . Secondary Targets 10 | . . 1 1 1 . . . 1 3 1 . 1 1 . . . Max Gunslinging Chain 1 | . . 1 1 1 . . . 1 1 1 . 1 1 . . . Shots Hit Robots 1065 | . 55 13 69 44 68 5 72 116 198 89 16 67 149 31 49 24 Core Hits 642 | . 22 10 35 40 54 2 31 83 174 40 7 35 69 21 16 3 Critical Kills 4 | . . . 1 . . . . . . 1 . . 1 . 1 . Critical Parts Destroyed 8 | . 2 . . . . . . . . . . . 5 . 1 . Critical Strikes 45 | . 3 . 1 . . . . . 1 1 . . 18 7 13 1 Burn 3 | . . . . . . . . . . . . . 3 . . . Destroy 12 | . 2 . 1 . . . . . . 1 . . 6 . 2 . Blast 27 | . . . . . . . . . 1 . . . 7 7 11 1 Corrupt 2 | . 1 . . . . . . . . . . . 1 . . . Puncture 1 | . . . . . . . . . . . . . 1 . . . Melee Attacks 82 | . . . . . . 1 . 1 6 . 7 15 39 13 . . Impact . | . . . . . . . . . . . . . . . . . Slashing 60 | . . . . . . 1 . 1 6 . 7 15 20 10 . . Piercing 22 | . . . . . . . . . . . . . 19 3 . . Sneak Attacks 2 | . . . . . . . . . . . 1 . 1 . . . Combat Hostiles . | . . . . . . . . . . . . . . . . . Follow-up Attacks 6 | . . . . . . . . . . . . . 3 3 . . Damage Inflicted 25994 | . 826 175 1190 1387 1786 114 1662 2258 4149 2376 549 1367 4781 1875 1261 238 Guns 16237 | . 684 175 1102 667 886 73 892 1681 2814 2134 468 876 3126 . 549 110 Cannons 4740 | . . . . . . . 125 223 859 238 . 403 1103 949 712 128 Explosions 4402 | . 126 . 88 708 900 41 645 354 476 . . 88 244 732 . . Melee 583 | . . . . . . . . . . . 81 . 308 194 . . Ramming 32 | . 16 . . 12 . . . . . 4 . . . . . . Kinetic 16815 | . 362 175 840 254 136 13 654 1649 3434 2121 468 1136 3285 949 1166 173 Thermal 2864 | . 126 . 88 477 97 41 570 255 239 251 . 88 537 . 95 . Explosive 2463 | . . . . . 690 . 200 354 243 . . . 244 732 . . Electromagnetic 3237 | . 322 . 262 644 863 60 238 . 233 . . 143 407 . . 65 Impact . | . . . . . . . . . . . . . . . . . Slashing 214 | . . . . . . . . . . . 81 . 32 101 . . Piercing 369 | . . . . . . . . . . . . . 276 93 . . Highest Corruption 38 | . 1 1 . 2 2 2 1 1 5 10 10 4 30 32 35 38 Average Corruption 7 | . 1 1 . 1 2 2 1 1 3 7 6 4 10 31 33 35 Corruption Purged 8 | . . . . . . . . . . . 7 . 1 . . . Effects 287 | . 1 4 . 9 12 8 1 5 19 31 25 11 81 31 23 26 Message Errors 67 | . . 3 . 2 4 5 1 3 5 4 6 2 16 6 4 6 Matter Fused 57 | . . . . . . . . . 3 7 5 3 21 5 4 9 Heat Flow Errors 35 | . . . . 1 1 1 . . 2 5 5 1 10 2 4 3 Energy Discharges 41 | . 1 . . 3 4 1 . 1 4 6 1 3 9 5 . 3 Parts Rejected 4 | . . . . . . . . . . . . . 2 1 1 . Data Loss (minor) 41 | . . 1 . 3 3 1 . 1 4 5 2 2 10 6 2 1 Data Loss (major) 10 | . . . . . . . . . . 1 2 . 4 . 1 2 Misfires 13 | . . . . . . . . . . 2 3 . 3 3 2 . Alerts 2 | . . . . . . . . . . . . . 1 . . 1 Misdirections 3 | . . . . . . . . . . 1 . . 1 . . 1 Weapon Failures 14 | . . . . . . . . . 1 . 1 . 4 3 5 . Overload Shots . | . . . . . . . . . . . . . . . . . Overflow Damage 287 | . 15 . . 6 51 . 42 49 34 . . 4 55 19 12 . Projectiles 120 | . . . . . . . . . 34 . . . 55 19 12 . Explosions 167 | . 15 . . 6 51 . 42 49 . . . 4 . . . . Melee . | . . . . . . . . . . . . . . . . . Knockbacks 54 | . . . . . . . . . 20 . . 6 15 5 6 2 Impact . | . . . . . . . . . . . . . . . . . Kinetic 49 | . . . . . . . . . 18 . . 6 12 5 6 2 Secondary 5 | . . . . . . . . . 2 . . . 3 . . . Self-Inflicted Damage 746 | . 78 . 21 138 143 . 212 32 . . 17 60 . 45 . . Shots 24 | . 2 . 1 7 5 . 3 2 . . 1 1 . 2 . . Rammed 4 | . 2 . . 1 . . . . . . . . . . . 1 Targets Rammed 6 | . 3 . . 1 . . . . . 1 . . . . . 1 Kicked 2 | . 1 . . . . . . . . 1 . . . . . . Crushed . | . . . . . . . . . . . . . . . . . Highest Temperature 485 | . 100 . 114 207 346 183 267 184 249 435 275 485 377 239 419 306 Average Temperature 94 | . 32 . 29 72 113 55 109 55 87 136 112 110 92 94 128 101 Received Heat Transfer 4792 | . 168 . 165 153 204 . 170 714 529 760 36 438 690 603 . 162 Effects 5 | . . . . . . . . . 3 2 . . . . . . Shutdowns 1 | . . . . . . . . . . 1 . . . . . . Energy Bleed 1 | . . . . . . . . . . 1 . . . . . . Interference 3 | . . . . . . . . . 3 . . . . . . . Siege Activations . | . . . . . . . . . . . . . . . . . Robots Corrupted . | . . . . . . . . . . . . . . . . . Combat Hostiles . | . . . . . . . . . . . . . . . . . Parts Fried 9 | . 2 . 2 . 1 . . . 4 . . . . . . . Impact Corruptions 1 | . . . . . . . . . . . . . 1 . . . Robots Melted 1 | . . . . . . . 1 . . . . . . . . . Combat Hostiles 1 | . . . . . . . 1 . . . . . . . . . Parts Melted 9 | . . . . . . . 1 . 2 . . . 5 . . 1 Heat Transferred 4800 | . 200 . 150 802 100 50 572 481 500 550 . 100 1147 . 148 . Parts Sabotaged . | . . . . . . . . . . . . . . . . . Parts Stolen . | . . . . . . . . . . . . . . . . . Parts Stripped . | . . . . . . . . . . . . . . . . . Power Chain Reactions 18 | . 2 . 2 8 2 1 2 . . . . 1 . . . . Missiles Intercepted . | . . . . . . . . . . . . . . . . . Alert | -11 -10 -10 -9 -9 -9 -9 -7 -7 -6 -6 -6 -6 -5 -5 -5 -5 ------- Run | Scr Mat Min Mat Sto Gar Rec Fac Gar Fac Gar Fac Gar Fac Gar Fac Gar Peak Influence 1176 | . 237 90 213 297 1031 463 1108 1176 727 662 358 386 395 612 446 365 Initial 951 | . . 10 . 48 61 463 951 747 617 427 347 193 186 205 321 287 Average 405 | . 64 38 57 89 636 278 1016 967 572 477 286 258 244 444 396 308 Maximum Alert Level 4 | . 1 . 1 1 3 2 4 4 3 2 1 1 1 2 2 1 Low Security (%) 29 | 100 88 100 97 92 18 22 . . . . 23 20 28 . . 2 Level 1 29 | . 11 . 2 8 1 74 . . . 19 76 79 71 32 35 97 Level 2 22 | . . . . . 32 2 . . 98 80 . . . 66 64 . Level 3 16 | . . . . . 47 . 95 89 1 . . . . . . . Level 4 1 | . . . . . . . 4 10 . . . . . . . . Level 5 . | . . . . . . . . . . . . . . . . . High Security . | . . . . . . . . . . . . . . . . . Max Security . | . . . . . . . . . . . . . . . . . Squads Dispatched 37 | . 2 . 1 3 . . 4 . 11 . 3 . 8 . 5 . Investigation 1 | . . . . 1 . . . . . . . . . . . . Extermination 12 | . . . . . . . 1 . 4 . 1 . 5 . 1 . Reinforcement 13 | . 2 . 1 . . . . . 2 . 2 . 3 . 3 . Assault 5 | . . . . 2 . . . . 2 . . . . . 1 . Garrison 6 | . . . . . . . 3 . 3 . . . . . . . Intercept . | . . . . . . . . . . . . . . . . . Construction Impeded 5 | . . . . . . . . . 1 . 1 . 2 . 1 . Haulers Reinforced 1 | . . . . . . . . . . . . . 1 . . . Active Scanning Responses . | . . . . . . . . . . . . . . . . . Cargo Convoy Interrupts 1 | . . . . . . . 1 . . . . . . . . . Alert ID Control Effect 5 | . . . . . . . . . . . . . 1 . 2 2 Stealth | -11 -10 -10 -9 -9 -9 -9 -7 -7 -6 -6 -6 -6 -5 -5 -5 -5 --------- Run | Scr Mat Min Mat Sto Gar Rec Fac Gar Fac Gar Fac Gar Fac Gar Fac Gar Distress Signals 11 | . 3 . 2 2 . . 1 . . 3 . . . . . . Communications Jammed . | . . . . . . . . . . . . . . . . . Distress Signals . | . . . . . . . . . . . . . . . . . Times Spotted 331 | . 22 3 18 28 29 19 14 32 40 23 4 18 35 15 7 24 Peak Tracking Total 13 | . 5 1 4 10 4 4 4 6 6 6 3 7 8 10 3 13 Tactical Retreats 24 | . 2 . . . . . 2 6 3 2 . 1 3 3 . 2 Traps | -11 -10 -10 -9 -9 -9 -9 -7 -7 -6 -6 -6 -6 -5 -5 -5 -5 ------- Run | Scr Mat Min Mat Sto Gar Rec Fac Gar Fac Gar Fac Gar Fac Gar Fac Gar Traps Triggered 23 | . 1 . . . 3 . . 2 . 3 . 3 6 4 . 1 Indirectly . | . . . . . . . . . . . . . . . . . Trap Hack Attempts . | . . . . . . . . . . . . . . . . . Triggered . | . . . . . . . . . . . . . . . . . Disarmed . | . . . . . . . . . . . . . . . . . Reprogrammed . | . . . . . . . . . . . . . . . . . Reused . | . . . . . . . . . . . . . . . . . Traps Extracted . | . . . . . . . . . . . . . . . . . Installed . | . . . . . . . . . . . . . . . . . Triggered 1 | . . . . . . . 1 . . . . . . . . . Machines | -11 -10 -10 -9 -9 -9 -9 -7 -7 -6 -6 -6 -6 -5 -5 -5 -5 ---------- Run | Scr Mat Min Mat Sto Gar Rec Fac Gar Fac Gar Fac Gar Fac Gar Fac Gar Machines Disabled 29 | . . . 3 4 3 . 1 3 . 1 . 1 7 3 2 1 Max in Single Turn 1 | . . . 1 1 1 . 1 1 . 1 . 1 1 1 1 1 Garrison Relay 11 | . . . . . 3 . . 3 . 1 . 1 . 2 . 1 Machines Sabotaged . | . . . . . . . . . . . . . . . . . Garrisons Compromised 1 | . . . . . . . 1 . . . . . . . . . Overloaded Fab Kills . | . . . . . . . . . . . . . . . . . Hacking | -11 -10 -10 -9 -9 -9 -9 -7 -7 -6 -6 -6 -6 -5 -5 -5 -5 --------- Run | Scr Mat Min Mat Sto Gar Rec Fac Gar Fac Gar Fac Gar Fac Gar Fac Gar Machines Accessed 45 | . 3 . 11 7 . 8 1 . 2 . 3 . 9 . 1 . Terminals 31 | . 2 . 9 6 . 6 . . . . 1 . 7 . . . Fabricators . | . . . . . . . . . . . . . . . . . Repair Stations 3 | . 1 . 1 . . . . . 1 . . . . . . . Recycling Units 4 | . . . . . . 2 . . . . 1 . 1 . . . Scanalyzers 1 | . . . 1 . . . . . . . . . . . . . Garrison Access 6 | . . . . 1 . . 1 . 1 . 1 . 1 . 1 . Total Hacks 93 | . 4 . 27 16 . 15 1 . 6 . 6 . 17 . 1 . Successful 43 | . 2 . 14 6 . 7 1 . 3 . 4 . 5 . 1 . Failed 50 | . 2 . 13 10 . 8 . . 3 . 2 . 12 . . . Catastrophic 12 | . 1 . 2 3 . 2 . . . . . . 4 . . . Database Lockouts . | . . . . . . . . . . . . . . . . . Manual 41 | . 3 . 15 10 . 8 . . . . . . 5 . . . Terminals 67 | . 3 . 21 13 . 12 . . . . 3 . 15 . . . Fabricators . | . . . . . . . . . . . . . . . . . Repair Stations 10 | . 1 . 4 . . . . . 5 . . . . . . . Recycling Units 6 | . . . . . . 3 . . . . 2 . 1 . . . Scanalyzers 2 | . . . 2 . . . . . . . . . . . . . Garrison Access 8 | . . . . 3 . . 1 . 1 . 1 . 1 . 1 . Terminal Hacks 20 | . 1 . 7 4 . 5 . . . . 2 . 1 . . . Record 1 | . . . 1 . . . . . . . . . . . . . Robot Analysis 1 | . . . 1 . . . . . . . . . . . . . Open Door 1 | . . . . 1 . . . . . . . . . . . . Open DSF 1 | . . . . . . . . . . . . . 1 . . . Level Access Points 1 | . . . . . . 1 . . . . . . . . . . Branch Access Points 1 | . . . 1 . . . . . . . . . . . . . Terminal Index 1 | . . . . . . . . . . . 1 . . . . . Unreport Threat 8 | . 1 . 3 3 . 1 . . . . . . . . . . Locate Traps 1 | . . . . . . . . . . . 1 . . . . . Zone Layout 4 | . . . 1 . . 3 . . . . . . . . . . Fabricator Hacks . | . . . . . . . . . . . . . . . . . Repair Station Hacks 7 | . 1 . 4 . . . . . 2 . . . . . . . Scan Component 3 | . . . 2 . . . . . 1 . . . . . . . Repair 3 | . . . 2 . . . . . 1 . . . . . . . Refit 1 | . 1 . . . . . . . . . . . . . . . Recycling Unit Hacks 3 | . . . . . . 1 . . . . 1 . 1 . . . Retrieve Matter 1 | . . . . . . . . . . . 1 . . . . . Retrieve Components 2 | . . . . . . 1 . . . . . . 1 . . . Scanalyzer 2 | . . . 2 . . . . . . . . . . . . . Insert Component 1 | . . . 1 . . . . . . . . . . . . . Analyze 1 | . . . 1 . . . . . . . . . . . . . Garrison Access Hacks 6 | . . . . 1 . . 1 . 1 . 1 . 1 . 1 . Unlock Access 6 | . . . . 1 . . 1 . 1 . 1 . 1 . 1 . Unauthorized Hacks 5 | . . . 1 1 . 1 . . . . . . 2 . . . Terminals 5 | . . . 1 1 . 1 . . . . . . 2 . . . Botnet 5 | . . . 1 1 . 1 . . . . . . 2 . . . Fabricators . | . . . . . . . . . . . . . . . . . Repair Stations . | . . . . . . . . . . . . . . . . . Recycling Units . | . . . . . . . . . . . . . . . . . Scanalyzers . | . . . . . . . . . . . . . . . . . Garrison Access . | . . . . . . . . . . . . . . . . . Data Cores Recovered 1 | . . . . 1 . . . . . . . . . . . . Used . | . . . . . . . . . . . . . . . . . Hacking Detections 31 | . 1 . 8 6 . 5 . . 1 . 2 . 7 . 1 . Full Trace Events 1 | . . . . 1 . . . . . . . . . . . . Feedback Events . | . . . . . . . . . . . . . . . . . Feedback Blocked . | . . . . . . . . . . . . . . . . . Robot Schematics Acquired . | . . . . . . . . . . . . . . . . . Robots Built . | . . . . . . . . . . . . . . . . . Authchips . | . . . . . . . . . . . . . . . . . Time . | . . . . . . . . . . . . . . . . . Total Robot Build Rating . | . . . . . . . . . . . . . . . . . Part Schematics Acquired 1 | . . . 1 . . . . . . . . . . . . . Parts Built . | . . . . . . . . . . . . . . . . . Authchips . | . . . . . . . . . . . . . . . . . Time . | . . . . . . . . . . . . . . . . . Total Part Build Rating . | . . . . . . . . . . . . . . . . . Parts Repaired 3 | . . . 2 . . . . . 1 . . . . . . . Time 96 | . . . 52 . . . . . 44 . . . . . . . Parts Recycled . | . . . . . . . . . . . . . . . . . Recycled Matter . | . . . . . . . . . . . . . . . . . Retrieved Matter . | . . . . . . . . . . . . . . . . . Retrieved Components 1 | . . . . . . . . . . . . . 1 . . . Parts Scanalyzed 1 | . . . 1 . . . . . . . . . . . . . Part Schematics Acquired 1 | . . . 1 . . . . . . . . . . . . . Parts Damaged . | . . . . . . . . . . . . . . . . . Bothacking | -11 -10 -10 -9 -9 -9 -9 -7 -7 -6 -6 -6 -6 -5 -5 -5 -5 ------------ Run | Scr Mat Min Mat Sto Gar Rec Fac Gar Fac Gar Fac Gar Fac Gar Fac Gar Used RIF Installer 6 | . . . . . 1 . . 1 . 1 . 1 . 1 . 1 Coupler Efficiency 2 | . . . . . . . . . . . . . . 1 . 1 Robot Detection 1 | . . . . . . . . 1 . . . . . . . . Watcher Feeds 1 | . . . . . . . . . . 1 . . . . . . Alert ID Control 1 | . . . . . . . . . . . . 1 . . . . Robots Hacked 36 | . . . . . . . 1 6 4 2 . 4 6 . 4 9 Non-combat 10 | . . . . . . . . . 4 . . . 4 . 2 . Combat 26 | . . . . . . . 1 6 . 2 . 4 2 . 2 9 Robot Hacks Applied 48 | . . . . . . . 1 7 8 2 . 4 9 . 6 11 parse_system 7 | . . . . . . . . 2 . . . 1 1 . 1 2 no_distress 3 | . . . . . . . . . 1 . . . 1 . 1 . generate_echo 1 | . . . . . . . . . 1 . . . . . . . find_chute 1 | . . . . . . . . . . . . . 1 . . . find_dsf 1 | . . . . . . . . . 1 . . . . . . . drop_inventory 2 | . . . . . . . . . 1 . . . . . 1 . ignore_parts 2 | . . . . . . . . . . . . . 2 . . . find_station 1 | . . . . . . . . . . . . . 1 . . . map_route 1 | . . . . . . . . . 1 . . . . . . . mark_security 1 | . . . . . . . . . 1 . . . . . . . find_shortcuts 1 | . . . . . . . . . . . . . 1 . . . find_garrison 1 | . . . . . . . . . . . . . . . 1 . link_fov 1 | . . . . . . . . . 1 . . . . . . . disrupt_area 1 | . . . . . . . . . . . . 1 . . . . overload_power 2 | . . . . . . . . 2 . . . . . . . . disable_weapons 1 | . . . . . . . . . . . . 1 . . . . go_dormant 1 | . . . . . . . . 1 . . . . . . . . streamctrl_high 10 | . . . . . . . . 1 . 2 . 1 2 . 2 2 formatsys_high 10 | . . . . . . . 1 1 1 . . . . . . 7 Relay Couplers Released 41 | . . . . . 11 . . 11 . 4 . 3 . 8 . 4 Machine Destruction 41 | . . . . . 11 . . 11 . 4 . 3 . 8 . 4 Attached 23 | . . . . . . . 1 3 4 4 . 3 1 2 1 4 Robots Rewired 10 | . . . . . . 7 . 3 . . . . . . . . Allies Hacked 2 | . . . . . . . . . 1 . . . . . . 1 Hacks Repelled . | . . . . . . . . . . . . . . . . . Allies | -11 -10 -10 -9 -9 -9 -9 -7 -7 -6 -6 -6 -6 -5 -5 -5 -5 -------- Run | Scr Mat Min Mat Sto Gar Rec Fac Gar Fac Gar Fac Gar Fac Gar Fac Gar Total Allies 42 | . . . . 12 . 7 1 5 1 2 . 1 2 . 2 9 Largest Group 10 | . . . . 10 4 7 1 3 1 1 . 1 2 . 1 4 Highest-Rated Group 125 | . . . . 88 38 103 32 63 19 85 . 32 58 . 41 125 Highest-Rated Ally 85 | . . . . 31 16 27 32 32 19 85 . 32 29 . 41 49 Total Orders . | . . . . . . . . . . . . . . . . . Ally Attacks 223 | . . . . 58 3 76 4 12 . 11 . 1 12 . 5 41 Total Damage 3324 | . . . . 843 27 561 105 292 . 483 . 55 132 . 122 704 Kills 38 | . . . . 11 . 15 1 2 . 4 . . 1 . 2 2 Allies Corrupted 1 | . . . . . . . . . . . . . . . . 1 Allies Melted . | . . . . . . . . . . . . . . . . . Intel | -11 -10 -10 -9 -9 -9 -9 -7 -7 -6 -6 -6 -6 -5 -5 -5 -5 ------- Run | Scr Mat Min Mat Sto Gar Rec Fac Gar Fac Gar Fac Gar Fac Gar Fac Gar Robot Analysis Total 1 | . . . 1 . . . . . . . . . . . . . Derelict Logs Recovered 1 | . . 1 . . . . . . . . . . . . . . Drone Launches . | . . . . . . . . . . . . . . . . . Drone Recoveries . | . . . . . . . . . . . . . . . . . Exploration | -11 -10 -10 -9 -9 -9 -9 -7 -7 -6 -6 -6 -6 -5 -5 -5 -5 ------------- Run | Scr Mat Min Mat Sto Gar Rec Fac Gar Fac Gar Fac Gar Fac Gar Fac Gar Turns Passed 17571 | 3 951 909 1192 675 1475 810 773 1601 1930 1133 757 859 2968 656 376 503 Spaces Moved 6998 | 3 485 546 555 238 537 250 258 527 721 364 331 324 1179 349 153 178 Core 8 | . . . . . . . . . 1 . . . . . . 7 Treads 3704 | . 388 546 555 238 537 250 258 527 214 111 . . 80 . . . Legs 2250 | 3 97 . . . . . . . 403 253 331 324 839 . . . Wheels 1021 | . . . . . . . . . 103 . . . 260 349 153 156 Hover . | . . . . . . . . . . . . . . . . . Flight 15 | . . . . . . . . . . . . . . . . 15 Fastest Speed 29 | 120 120 160 160 160 240 240 240 240 145 190 190 190 101 101 123 29 Average Speed 196 | 120 152 160 167 235 240 240 240 240 207 219 190 191 200 141 142 122 Slowest Speed 1850 | 120 160 160 240 240 240 240 240 240 1850 400 190 260 410 160 175 135 Overloaded Moves . | . . . . . . . . . . . . . . . . . Propulsion Burnouts . | . . . . . . . . . . . . . . . . . Robots Hopped 4 | . . . . . . . . . . . . . . . . 4 Cave-ins Triggered . | . . . . . . . . . . . . . . . . . Exploration Rate (%) 41 | 2 85 98 43 51 86 52 7 63 16 49 8 41 26 46 4 34 Regions Visited 16 Branch Regions 3 Pre-discovered Areas 1 | . . 1 . . . . . . . . . . . . . . Known Exits Taken 8 | . . . 1 1 . 1 1 . 1 . 1 . 1 . 1 . Unknown Exits Taken 3 | 1 1 1 . . . . . . . . . . . . . . Scrap Searched 1 | . . 1 . . . . . . . . . . . . . . Spaces Dug 51 | . . . 9 . 4 1 . . 6 2 11 . 17 1 . . Terrain Destroyed 359 | . 5 . 12 14 61 3 34 21 22 13 18 19 77 40 11 9 Melee 31 | . . . . . . 1 . . 6 . 6 . 17 1 . . Projectile 92 | . . . . . . . . . 6 12 7 12 28 7 11 9 AOE 234 | . 5 . 12 14 61 2 34 21 10 . 5 7 31 32 . . Terrain Rammed . | . . . . . . . . . . . . . . . . . Walls Destroyed . | . . . . . . . . . . . . . . . . . Machines Disabled . | . . . . . . . . . . . . . . . . . Actions | -11 -10 -10 -9 -9 -9 -9 -7 -7 -6 -6 -6 -6 -5 -5 -5 -5 --------- Run | Scr Mat Min Mat Sto Gar Rec Fac Gar Fac Gar Fac Gar Fac Gar Fac Gar Total 9636 | 2 632 567 738 303 644 449 350 759 974 605 427 477 1565 455 261 428 Wait 941 | . 66 1 100 19 18 58 28 49 75 105 53 54 93 6 31 185 Move 6978 | 2 484 545 554 238 536 249 257 526 720 363 331 323 1179 348 153 170 Hop 4 | . . . . . . . . . . . . . . . . 4 Pick Up 190 | . 17 5 13 5 11 . 9 12 14 20 5 10 42 14 8 5 Fast Attach 113 | . 4 . 6 2 1 1 9 6 16 16 4 4 28 5 6 5 Attach 139 | . 2 . 2 1 4 . 9 18 16 17 . 6 37 13 7 7 Detach 43 | . 2 . 3 2 . 1 1 5 5 7 1 1 8 1 4 2 Swap 156 | . 5 2 8 8 15 2 4 20 24 9 6 8 26 . 9 10 Drop 135 | . 11 5 13 3 13 2 6 2 15 16 9 10 18 3 6 3 Fire 603 | . 38 9 39 24 46 5 27 57 83 46 11 31 100 23 37 27 Melee 74 | . . . . . . 1 . 1 6 . 7 15 34 10 . . Ram . | . . . . . . . . . . . . . . . . . Kick 2 | . 1 . . . . . . . . 1 . . . . . . Crush 4 | . 2 . . 1 . . . . . . . . . . . 1 Escape Stasis 64 | . . . . . . . . 4 . 5 . 15 . 32 . 8 Rewire 190 | . . . . . . 130 . 59 . . . . . . . 1 Trap . | . . . . . . . . . . . . . . . . . Miscellaneous . | . . . . . . . . . . . . . . . . . Route ------- -11/Scrapyard -10/Materials (discovered 3 exits: *Mat x2 / [*Min]) -10/Mines (discovered 2 exits: *Mat x2) -9/Materials (discovered 5 exits: [*Mat] / *Min x2 / *Sto x2) -9/Storage (discovered 2 exits: [*Mat] / Gar) -9/Garrison (discovered 3 exits: *Rec x3) -9/Recycling -7/Factory -7/Garrison (discovered 2 exits: *Fac x2) -6/Factory (discovered 3 exits: *Fac / *Low / Gar) -6/Garrison -6/Factory -6/Garrison -5/Factory (discovered 2 exits: [*Upp] / Gar) -5/Garrison -5/Factory -5/Garrison History --------- Turn | Location | Event 1 | -11/Scrapyard | Discovered new exit (range 1) 4 | -11/Scrapyard | Entered Materials 315 | -10/Materials | Build established: Mutant 346 | -10/Materials | Discovered new exit (range 15) 651 | -10/Materials | Discovered new exit (range 13) 874 | -10/Materials | Discovered new exit (range 9) 955 | -10/Materials | Entered Mines 974 | -10/Mines | Met a Derelict bent on vengeance 988 | -10/Mines | Discovered new exit (range 5) 1130 | -10/Mines | Discovered new exit (range 18) 1344 | -10/Mines | Learned location of Zion (-7) 1864 | -10/Mines | Entered Materials 1864 | -9/Materials | Evolved 2 slots: Propulsion x1, Weapon x1 1899 | -9/Materials | Discovered new exit (range 14) 2169 | -9/Materials | Build established: Skirmisher 2247 | -9/Materials | Discovered new exit (range 17) 2330 | -9/Materials | Identified exit to Mines 2330 | -9/Materials | Identified exit to Storage 2788 | -9/Materials | Repaired Lgt. Treads 2816 | -9/Materials | Repaired Lgt. Treads 3056 | -9/Materials | Entered Storage 3074 | -9/Storage | Met a pair of Derelict thieves 3211 | -9/Storage | Destroyed 9 combat bots 3599 | -9/Storage | Assisted by bots powering up and referring to "LRC-V3" 3672 | -9/Storage | Discovered new exit (range 13) 3731 | -9/Storage | Identified exit to Garrison 3731 | -9/Storage | Entered Garrison 3731 | -9/Garrison | Accompanied by 4 allies 3778 | -9/Garrison | Triggered checkpoint 3896 | -9/Garrison | Triggered checkpoint 3974 | -9/Garrison | Build established: Scavenger-Tank 3986 | -9/Garrison | Triggered checkpoint 4013 | -9/Garrison | Triggered checkpoint 4052 | -9/Garrison | Destroyed 11 combat bots 4144 | -9/Garrison | Discovered new exit (range 13) 4168 | -9/Garrison | Triggered checkpoint 4266 | -9/Garrison | Garrison Relay disabled 4498 | -9/Garrison | Discovered new exit (range 15) 4548 | -9/Garrison | Triggered checkpoint 4700 | -9/Garrison | Triggered checkpoint 4768 | -9/Garrison | Discovered new exit (range 13) 4800 | -9/Garrison | Triggered checkpoint 5007 | -9/Garrison | Installed Relay Interface Framework 5115 | -9/Garrison | Garrison Relay disabled 5206 | -9/Garrison | Entered Recycling 5282 | -9/Recycling | Spotter reported a threat 5287 | -9/Recycling | Spotter reported a threat 5287 | -9/Recycling | Spotter reported a threat 5290 | -9/Recycling | Spotter reported a threat 5313 | -9/Recycling | Spotter reported a threat 5340 | -9/Recycling | Spotter reported a threat 5363 | -9/Recycling | Spotter reported a threat 5366 | -9/Recycling | Spotter reported a threat 5393 | -9/Recycling | Spotter reported a threat 5416 | -9/Recycling | Spotter reported a threat 5420 | -9/Recycling | Build established: Bothacker-Tank 5606 | -9/Recycling | Spotter reported a threat 5662 | -9/Recycling | Spotter reported a threat 5672 | -9/Recycling | Spotter reported a threat 5685 | -9/Recycling | Spotter reported a threat 5691 | -9/Recycling | Spotter reported a threat 5722 | -9/Recycling | Spotter reported a threat 5725 | -9/Recycling | Spotter reported a threat 5729 | -9/Recycling | Identified exit to Factory 5756 | -9/Recycling | Spotter reported a threat 5773 | -9/Recycling | Spotter reported a threat 5775 | -9/Recycling | Spotter reported a threat 5809 | -9/Recycling | Spotter reported a threat 5819 | -9/Recycling | Spotter reported a threat 5819 | -9/Recycling | Spotter reported a threat 5819 | -9/Recycling | Spotter reported a threat 5862 | -9/Recycling | Spotter reported a threat 5872 | -9/Recycling | Spotter reported a threat 5872 | -9/Recycling | Spotter reported a threat 5872 | -9/Recycling | Spotter reported a threat 5889 | -9/Recycling | Build established: Bothacker-Mutant 5915 | -9/Recycling | Spotter reported a threat 5917 | -9/Recycling | Spotter reported a threat 5917 | -9/Recycling | Spotter reported a threat 5917 | -9/Recycling | Spotter reported a threat 5968 | -9/Recycling | Spotter reported a threat 5968 | -9/Recycling | Spotter reported a threat 5970 | -9/Recycling | Spotter reported a threat 5972 | -9/Recycling | Spotter reported a threat 6016 | -9/Recycling | Entered Factory 6016 | -7/Factory | Accompanied by 1 ally 6016 | -7/Factory | Evolved 4 slots: Utility x3, Weapon x1 6381 | -7/Factory | Lost 3 parts (1u2w) 6500 | -7/Factory | Garrison activated, responded to threat 6700 | -7/Factory | Cargo convoy interrupted 6777 | -7/Factory | Identified exit to Garrison 6789 | -7/Factory | Entered Garrison 6819 | -7/Garrison | Build established: Bothacker-Gunner 6826 | -7/Garrison | Triggered checkpoint 6952 | -7/Garrison | Triggered checkpoint 6962 | -7/Garrison | Triggered checkpoint 7065 | -7/Garrison | Lost 8 parts (2p2n1u3w) 7208 | -7/Garrison | Garrison Relay disabled 7510 | -7/Garrison | Build established: Bothacker-Mutant 7708 | -7/Garrison | Lost 7 parts (1p3n1u2w) 7752 | -7/Garrison | Triggered checkpoint 7850 | -7/Garrison | Garrison Relay disabled 7887 | -7/Garrison | Build established: Bothacker-Gunner 7910 | -7/Garrison | Discovered new exit (range 11) 7998 | -7/Garrison | Triggered checkpoint 8097 | -7/Garrison | Discovered new exit (range 8) 8114 | -7/Garrison | Identified exit to Factory 8131 | -7/Garrison | Expanded RIF knowledge: Robot Detection 8216 | -7/Garrison | Triggered checkpoint 8280 | -7/Garrison | Garrison Relay disabled 8390 | -7/Garrison | Entered Factory 8390 | -6/Factory | Evolved 2 slots: Utility x2 8740 | -6/Factory | First assault squad dispatched 9030 | -6/Factory | Lost 8 parts (1p4n3w) 9092 | -6/Factory | Discovered new exit (range 15) 9161 | -6/Factory | Lost 4 parts (1p2n1w) 9667 | -6/Factory | Repaired Remote Datajack? 9760 | -6/Factory | Identified exit to Factory 9806 | -6/Factory | Spotted B-75 Beast 9912 | -6/Factory | Discovered new exit (range 5) 9916 | -6/Factory | Identified exit to Lower Caves 10033 | -6/Factory | Garrison activated, responded to threat 10079 | -6/Factory | Identified exit to Garrison 10320 | -6/Factory | Entered Garrison 10452 | -6/Garrison | Core integrity fell below 50% 10475 | -6/Garrison | Spotted B-75 Beast 10477 | -6/Garrison | Hijacked Beast 5a control node with streamctrl_high 10496 | -6/Garrison | Lost 13 parts (1p4n2u6w) 10709 | -6/Garrison | Destroyed Beast 5a 10932 | -6/Garrison | Triggered checkpoint 10976 | -6/Garrison | Core integrity fell below 20% 10977 | -6/Garrison | System corruption reached 10% 11007 | -6/Garrison | Lost 6 parts (1p2n2u1w) 11242 | -6/Garrison | Triggered checkpoint 11296 | -6/Garrison | Garrison Relay disabled 11379 | -6/Garrison | Discovered new exit (range 10) 11405 | -6/Garrison | Expanded RIF knowledge: Watcher Feeds 11453 | -6/Garrison | Entered Factory 12006 | -6/Factory | Build established: Bothacker-Tank 12210 | -6/Factory | Identified exit to Garrison 12210 | -6/Factory | Entered Garrison 12337 | -6/Garrison | Spotted B-75 Beast 12390 | -6/Garrison | Destroyed B-75 Beast 12414 | -6/Garrison | Lost 4 parts (4w) 12666 | -6/Garrison | Triggered checkpoint 12738 | -6/Garrison | Discovered exit to Factory (range 8) 12763 | -6/Garrison | Expanded RIF knowledge: Alert ID Control 12832 | -6/Garrison | Triggered checkpoint 12871 | -6/Garrison | Garrison Relay disabled 13069 | -6/Garrison | Entered Factory 13069 | -5/Factory | Evolved 2 slots: Utility x2 13095 | -5/Factory | Lost 3 parts (1n1u1w) 13144 | -5/Factory | Discovered new exit (range 10) 13950 | -5/Factory | Build established: Bothacker-Mutant 14343 | -5/Factory | Build established: Bothacker-Tank 14478 | -5/Factory | System corruption reached 10% 14534 | -5/Factory | Lost 13 parts (1p3n4u5w) 15528 | -5/Factory | Lost 3 parts (1n1u1w) 15738 | -5/Factory | System corruption reached 30% 15762 | -5/Factory | Lost 10 parts (1p5n2u2w) 15943 | -5/Factory | Build established: Bothacker-Mutant 16037 | -5/Factory | Identified exit to Garrison 16037 | -5/Factory | Entered Garrison 16099 | -5/Garrison | Lost 3 parts (1p1u1w) 16102 | -5/Garrison | Triggered checkpoint 16121 | -5/Garrison | Garrison Relay disabled 16224 | -5/Garrison | Triggered checkpoint 16225 | -5/Garrison | Triggered checkpoint 16245 | -5/Garrison | Core integrity fell below 50% 16281 | -5/Garrison | Lost 10 parts (4n2u4w) 16323 | -5/Garrison | Destroyed 9 combat bots 16534 | -5/Garrison | Discovered new exit (range 9) 16558 | -5/Garrison | Expanded RIF knowledge: Coupler Efficiency 16588 | -5/Garrison | Triggered checkpoint 16648 | -5/Garrison | Garrison Relay disabled 16693 | -5/Garrison | Entered Factory 16917 | -5/Factory | Lost 4 parts (2n1u1w) 16993 | -5/Factory | First assault squad dispatched 17069 | -5/Factory | Identified exit to Garrison 17069 | -5/Factory | Entered Garrison 17076 | -5/Garrison | Expanded RIF knowledge: Coupler Efficiency 17146 | -5/Garrison | Triggered checkpoint 17241 | -5/Garrison | Garrison Relay disabled 17300 | -5/Garrison | Build established: Botlord-Mutant 17438 | -5/Garrison | Triggered checkpoint 17447 | -5/Garrison | Triggered checkpoint 17473 | -5/Garrison | Triggered checkpoint 17548 | -5/Garrison | Core integrity fell below 20% 17558 | -5/Garrison | Released all parts (13) 17572 | -5/Garrison | Destroyed by G-67 Veteran with Electrolaser Last Messages --------------- 17558_ Com. Wheel crushed and broken. 17558_ Released Relay Coupler [Hunter]. 17558_ Released Med. Treads. 17558_ Med. Treads crushed and broken. 17558_ Released Cold Fusion Reactor. 17558_ Cold Fusion Reactor crushed and broken. 17558_ Released Relay Coupler [ARC]. 17558_ Released EM Shield. 17558_ EM Shield crushed and broken. 17558_ Released Relay Coupler [Swarmer]. 17558_ Released Relay Coupler [Grunt]. 17558_ Released Hvy. Laser. 17558_ Hvy. Laser crushed and broken. 17558_ Acquired VTOL Module. 17562_ Acquired 26 matter. 17563_ System corrupted: Substantial component data lost. 17563_ Acquired VTOL Module. 17566_ VTOL Module destroyed. 17568_ Acquired VTOL Module. 17568_ VTOL Module destroyed. Map ----- +----------------------------------------------------+ | ?????????????????????????????????????????????????? | | ?????????????????????????????????????????????????? | | ?????????????????????????????????????????????????? | | ?????????????????????????????????????????????????? | | ?????????????????????????????????????????????????? | | ?????????????????????????????????????????????????? | | ??????????????????????????????#??????????????????? | | ?????????????????????????????? ??????????????????? | | ?????????????????????????????? ??????????????????? | | ?????????????????????????????? #?????????????????? | | ???????????????????? ## ###+###???????????????? | | ???????????????????? ???????????????? | | ???????????????? % ???????????????? | | ????????????????? ? ????????????????? | | ?????????????????# ?# ## "????????????????? | | ?????????????????# ## ## ###??????????????? | | ?????????????????" C#??????????????? | | ???????????????#?" C#??????????????? | | ???????????????# " #????###???????? | | ???????????????? ? == ^ C?????# #???????? | | ?????????????????# ??# *%## #??????# #???????? | | ???????????####### ## [!##[gg########"##??????? | | ??????????? %%!g #??????? | | ???????????? !=g * #??????? | | ????????????????## *p %######## #??????? | | ?????????????????###### @ ###*##?# #??# #??????? | | ??????????????????????# ##!*!#?# #??# #??????? | | ??????????????????????######!#[!#?# #??# #??????? | | ??????????????????????????#!## ####*#### #??????? | | ??????????????????????????##?# [ [= [ # #??????? | | ?????????????????????????????######[#### #??????? | | ??????????????????????????????????# #??# #??????? | | ??????????????????????????????????# #??# #??????? | | ??????????????????????????????????# #??# #??????? | | ???????????????????????????????######### #??????? | | ???????????????????????????????# #??????? | | ???????????????????????????????# ####### ######## | | ???????????????????????????????# #?????# | | ???????????????????????????????# ###???# | | ???????????????????????????????# #???########### | | ???????????????????????????????# #?????????????# | | ???????????????????????????????# #?????????????# | | ???????????????????????????????# ###?????????????# | | ???????????????????????????????# #???????????????# | | ???????????????????????????????# #???????????????# | | ???????????????????????????????# #???????????????# | | ?????????????????????????????### #???????????????# | | ?????????????????????????????#"# #???????????????? | | ?????????????????????????????#" #???????????????? | | ?????????????????????????????# !#???????????????? | +----------------------------------------------------+ Best States ------------- Heat Dissipation 68 Coolant Potential 65 Energy Generation 19 Energy Capacity 640 Matter Stores 300 Matter Capacity 550 Sight Range 18 Robot Scan Range 15 Terrain Scan Range 14 Terrain Scan Density 10 Power Amplification 20 Corruption Prevention 12 Armor Coverage 825 Resistance: KI 25 Resistance: TH 25 Resistance: EM 25 Weapon Shielding 66 Weapon Cycling 30 Evasion (%) 55 Targeting Accuracy 8 Melee Accuracy 12 Target Analysis 6 Core Analysis 8 Recoil Reduction 3 Kinecelleration 40 Relay Coupler Types 6 Relay Coupler Value 144 Item Schematics ----------------- Lgt. Treads | -9/Materials | Scanalyzed Robot Schematics ------------------ None Fabricated ------------ Nothing Alien Tech Used ----------------- None Achievements -------------- Error 47 Infiltrator Challenges ------------ None Game ------ Seed MiniLegBooster Manual? 0 Play Time 04:30:17 Cumulative 155.1 hours Start 2021.12.13 @ 21:46:08 End 2022.01.06 @ 16:07:01 Sessions 6 Manual Loads 0 Difficulty Rogue Special Mode None Game No. 55 Rogue 55 Adventurer 0 Explorer 0 Win Type - Total 3 Types 3/0/0/0/0/0/0/0/0 Lore% 53 Gallery% 60 Achievement% 41 Wizard Run 0 Options --------- ASCII 0 Keyboard 1 Movement Vi Keybinds 0 Fullscreen 1 Font 18/SmallcapsGlow Map View 76x50 Tactical HUD 1 Map Filters NONE Filters NONE Steam 1 RUN: 6ffe0d6e-528f-47d4-bc17-bedebfe08e65